bitfinex-derivatives/quotes_SOLF0:USTF0_20250311
["timestamp","ask_amount","ask_price","bid_price","bid_amount"]
[1741687102363,0.05718277,123.86,123.84,8.0755]
[1741687102569,0.05718277,123.86,123.83,0.05167609]
[1741687103470,8.13178277,123.86,123.83,8.12757609]
[1741687104373,0.05718277,123.86,123.83,0.05167609]
[1741687104574,8.0752,123.85,123.83,0.05167609]
[1741687104778,0.05718277,123.86,123.83,0.05167609]
[1741687104971,8.0749,123.85,123.83,0.05167609]
[1741687105172,0.05718277,123.86,123.83,0.05167609]
[1741687105474,8.0754,123.85,123.83,0.05167609]
[1741687106273,0.05718277,123.86,123.83,0.05167609]
[1741687106575,8.0755,123.84,123.83,0.05167609]
[1741687108279,13.4782381,123.85,123.79,32.74]
[1741687108478,15.6559381,123.85,123.76,16.3692381]
[1741687108781,15.6559381,123.85,123.79,32.74]
[1741687109381,8.0775,123.81,123.79,32.74]
[1741687109581,0.06197305,123.83,123.79,32.74]
[1741687109778,8.0778,123.81,123.79,32.79404367]
[1741687110274,8.077,123.82,123.79,32.79404367]
[1741687110774,8.077,123.82,123.79,8.13274367]
[1741687110974,0.06197305,123.83,123.79,0.05404367]
[1741687111179,8.13847305,123.83,123.79,0.05404367]
[1741687111380,8.13847305,123.83,123.8,8.078]
[1741687111580,0.06197305,123.83,123.79,0.05404367]
[1741687113088,8.13817305,123.83,123.8,8.0778]
[1741687113389,0.06197305,123.83,123.79,0.05404367]
[1741687113686,8.13847305,123.83,123.8,8.078]
[1741687113888,8.13847305,123.83,123.79,0.05404367]
[1741687114087,0.06197305,123.83,123.79,0.05404367]
[1741687114288,0.06197305,123.83,123.81,8.0771]
[1741687115388,8.13827305,123.83,123.8,8.0778]
[1741687115891,0.06197305,123.83,123.79,0.05404367]
[1741687116090,0.06197305,123.83,123.81,8.0774]
[1741687116390,0.06197305,123.83,123.79,0.05404367]
[1741687116693,8.13817305,123.83,123.8,8.0777]
[1741687116891,0.06197305,123.83,123.79,0.05404367]
[1741687117289,0.06197305,123.83,123.8,8.078]
[1741687117687,0.06197305,123.83,123.79,0.05404367]
[1741687117889,8.0772,123.82,123.79,8.13284367]
[1741687118290,8.13827305,123.83,123.8,8.0776]
[1741687118591,0.06197305,123.83,123.8,8.0776]
[1741687118991,0.06197305,123.83,123.79,0.05404367]
[1741687120091,8.0776,123.81,123.79,0.05404367]
[1741687121395,0.06197305,123.83,123.79,0.05404367]
[1741687122489,8.0781,123.81,123.79,0.05404367]
[1741687122890,0.06197305,123.83,123.79,0.05404367]
[1741687123591,8.0781,123.8,123.79,0.05404367]
[1741687124295,8.0798,123.78,123.75,40.8211]
[1741687124687,8.0798,123.78,123.75,32.74]
[1741687124888,2.1207,123.81,123.76,8.0804]
[1741687125390,8.0797,123.78,123.75,40.8209]
[1741687125699,8.0797,123.78,123.77,0.04006942]
[1741687126396,13.4782381,123.78,123.7,13.4782381]
[1741687126601,46.1982381,123.78,123.7,32.72]
[1741687127491,0.05181543,123.75,123.68,15.5693381]
[1741687127695,0.05181543,123.75,123.69,34.20163716]
[1741687127887,0.05181543,123.75,123.69,32.74]
[1741687128303,8.0827,123.73,123.69,40.8251]
[1741687128490,8.0827,123.73,123.69,40.8051]
[1741687128695,0.05417095,123.72,123.69,32.72]
[1741687129500,0.05417095,123.72,123.67,2.0287]
[1741687129695,0.05417095,123.72,123.7,8.0843]
[1741687130094,0.05417095,123.72,123.68,32.72]
[1741687130295,0.05417095,123.72,123.7,8.0843]
[1741687131600,0.05417095,123.72,123.71,8.084]
[1741687133196,0.05417095,123.72,123.71,40.824]
[1741687133499,2.1518,123.77,123.75,8.0812]
[1741687133705,207.4782381,123.8,123.75,8.0812]
[1741687133897,8.0796,123.78,123.75,8.0812]
[1741687134704,8.13324176,123.78,123.75,8.13537095]
[1741687135405,0.05364176,123.78,123.75,8.13537095]
[1741687135800,0.05364176,123.78,123.76,8.0804]
[1741687136005,0.05364176,123.78,123.75,0.05417095]
[1741687137209,8.0808,123.76,123.75,0.05417095]
[1741687137408,0.05364176,123.78,123.75,0.05417095]
[1741687139007,8.0804,123.77,123.75,0.05417095]
[1741687139511,0.05364176,123.78,123.75,0.05417095]
[1741687139703,8.0808,123.76,123.75,0.05417095]
[1741687140410,8.0804,123.77,123.75,0.05417095]
[1741687140608,13.53187986,123.78,123.75,0.05417095]
[1741687141005,8.0808,123.76,123.75,0.05417095]
[1741687141207,13.53187986,123.78,123.71,32.72]
[1741687141404,8.0811,123.76,123.73,8.0826]
[1741687142112,8.0804,123.77,123.74,8.082]
[1741687142413,8.135417,123.77,123.74,8.082]
[1741687143203,8.0808,123.76,123.73,8.0824]
[1741687143405,8.0808,123.76,123.71,32.72]
[1741687143714,8.0808,123.76,123.73,8.0822]
[1741687144203,8.66687743,123.76,123.72,8.0831]
[1741687144409,8.66687743,123.76,123.71,41.38687743]
[1741687144810,8.0824,123.74,123.71,49.47057743]
[1741687145007,8.0824,123.74,123.71,16.75057743]
[1741687145310,0.05708899,123.74,123.71,41.38687743]
[1741687145507,0.05708899,123.74,123.72,8.083]
[1741687145711,0.05708899,123.74,123.71,41.38687743]
[1741687145915,8.13948899,123.74,123.71,49.47057743]
[1741687146114,0.05708899,123.74,123.71,41.38687743]
[1741687146610,0.05708899,123.74,123.73,8.0827]
[1741687153914,8.085,123.7,123.66,50.07164595]
[1741687154315,0.05910592,123.69,123.66,32.72]
[1741687155314,0.05910592,123.69,123.64,8.0881]
[1741687155619,0.05910592,123.69,123.64,32.7]
[1741687156015,0.05910592,123.69,123.63,8.66687743]
[1741687156319,0.05910592,123.69,123.65,32.7]
[1741687156508,0.05910592,123.69,123.64,8.0886]
[1741687156714,0.05910592,123.69,123.65,32.7]
[1741687157413,0.05910592,123.69,123.65,40.7873]
[1741687158220,8.14480592,123.69,123.65,40.7873]
[1741687158724,13.61786343,123.69,123.64,32.7]
[1741687159227,8.0877,123.66,123.64,32.7]
[1741687159523,0.05434161,123.66,123.64,32.7]
[1741687159823,0.05434161,123.66,123.62,1.976]
[1741687160213,0.05434161,123.66,123.62,10.0655]
[1741687160422,8.14194161,123.66,123.62,10.0655]
[1741687161018,0.05434161,123.66,123.63,32.72]
[1741687161625,8.14204161,123.66,123.63,32.72]
[1741687162327,0.05434161,123.66,123.63,32.72]
[1741687163716,0.05434161,123.66,123.65,8.0879]
[1741687167026,17.79325751,123.73,123.69,8.0852]
[1741687167226,17.79325751,123.73,123.68,32.72]
[1741687167423,8.0857,123.69,123.67,32.72]
[1741687167626,8.0857,123.69,123.65,40.7875]
[1741687167827,8.0857,123.69,123.65,32.7]
[1741687168028,0.05102285,123.68,123.66,0.05158688]
[1741687168734,0.05102285,123.68,123.67,8.0866]
[1741687171832,13.55875751,123.73,123.66,0.05158688]
[1741687172033,21.64185751,123.73,123.69,8.0848]
[1741687172231,2.0502,123.74,123.69,32.7]
[1741687172829,10.1326,123.74,123.7,8.0842]
[1741687173135,0.05889316,123.73,123.7,8.13728885]
[1741687173432,0.05889316,123.73,123.7,0.05308885]
[1741687173733,0.05889316,123.73,123.72,8.0834]
[1741687174932,0.05889316,123.73,123.72,40.7834]
[1741687175137,100.65208359,123.81,123.72,46.25875751]
[1741687175334,20.36292231,123.79,123.72,32.7]
[1741687175529,13.55875751,123.79,123.72,32.7]
[1741687176236,0.06112571,123.77,123.74,0.0619764]
[1741687176535,0.06112571,123.77,123.75,40.7811]
[1741687176936,0.06112571,123.77,123.75,32.7]
[1741687177335,8.14132571,123.77,123.75,32.7]
[1741687177735,0.06112571,123.77,123.75,32.7]
[1741687178538,13.61988322,123.77,123.74,0.0619764]
[1741687179238,8.0814,123.75,123.74,0.0619764]
[1741687182340,13.55875751,123.75,123.61,191.0]
[1741687182537,13.55875751,123.75,123.67,32.68]
[1741687182738,2.1607,123.74,123.67,32.68]
[1741687183441,0.06051298,123.72,123.69,8.13702894]
[1741687183648,0.06051298,123.72,123.7,32.68]
[1741687184034,8.14421298,123.72,123.7,32.68]
[1741687184235,0.06051298,123.72,123.69,0.05172894]
[1741687184837,8.0847,123.7,123.69,0.05172894]
[1741687185243,0.06051298,123.72,123.69,0.05172894]
[1741687185444,8.0841,123.71,123.69,0.05172894]
[1741687185645,0.06051298,123.72,123.69,0.05172894]
[1741687186050,8.14421298,123.72,123.69,8.13672894]
[1741687186246,0.06051298,123.72,123.69,0.05172894]
[1741687186451,0.06051298,123.72,123.7,32.68]
[1741687186653,8.14431298,123.72,123.7,32.68]
[1741687186849,0.06051298,123.72,123.7,32.68]
[1741687187753,8.084,123.71,123.7,32.68]
[1741687188051,0.06051298,123.72,123.7,32.68]
[1741687188654,8.084,123.71,123.7,32.68]
[1741687189355,0.06051298,123.72,123.7,32.68]
[1741687189552,8.14441298,123.72,123.7,32.68]
[1741687190248,0.06051298,123.72,123.7,40.7644]
[1741687190955,8.14391298,123.72,123.7,40.7644]
[1741687191255,0.06051298,123.72,123.71,8.084]
[1741687194354,0.06051298,123.72,123.69,49.46758054]
[1741687194554,8.14431298,123.72,123.69,32.71172894]
[1741687195158,8.0841,123.71,123.69,32.71172894]
[1741687195358,0.06051298,123.72,123.69,32.71172894]
[1741687195555,8.0841,123.71,123.69,32.71172894]
[1741687197456,8.14421298,123.72,123.69,32.71172894]
[1741687198059,8.14421298,123.72,123.69,40.79672894]
[1741687198359,0.06051298,123.72,123.69,32.71172894]
[1741687199158,0.06051298,123.72,123.7,8.0843]
[1741687199755,0.06051298,123.72,123.69,32.71172894]
[1741687200461,0.06051298,123.72,123.7,8.0843]
[1741687200661,0.06051298,123.72,123.69,32.71172894]
[1741687201062,0.06051298,123.72,123.7,8.6708516]
[1741687201262,0.06051298,123.72,123.69,32.71172894]
[1741687201459,0.06051298,123.72,123.7,8.6708516]
[1741687201665,16.7506516,123.78,123.74,8.0817]
[1741687201866,6.82586973,123.77,123.74,40.7417]
[1741687202058,16.7506516,123.78,123.74,40.7417]
[1741687202264,6.825505,123.77,123.74,32.66]
[1741687202564,8.6708516,123.78,123.76,8.0808]
[1741687202859,0.06194454,123.77,123.76,8.0808]
[1741687203062,0.06194454,123.77,123.74,49.47325501]
[1741687203463,8.0814,123.75,123.74,0.06060341]
[1741687203668,16.7522516,123.75,123.74,0.06060341]
[1741687204169,8.0834,123.72,123.7,32.66]
[1741687204369,8.0834,123.72,123.68,8.0858]
[1741687204666,8.6708516,123.71,123.68,8.0858]
[1741687204858,16.7549516,123.71,123.68,40.7258]
[1741687205261,16.80869508,123.71,123.68,40.77757901]
[1741687205567,8.0851,123.7,123.68,32.69177901]
[1741687205966,8.72459508,123.71,123.68,32.69177901]
[1741687206372,0.05374348,123.71,123.68,32.69177901]
[1741687206773,0.05374348,123.71,123.68,40.77737901]
[1741687207771,0.05374348,123.71,123.68,32.69177901]
[1741687208473,8.13794348,123.71,123.68,40.77737901]
[1741687208669,0.05374348,123.71,123.68,32.69177901]
[1741687208870,0.05374348,123.71,123.69,8.0853]
[1741687209075,11.05112332,123.77,123.68,46.24372909]
[1741687209277,6.82882472,123.76,123.7,13.55195008]
[1741687209475,11.05112332,123.77,123.71,32.64]
[1741687209671,2.02009327,123.76,123.71,32.64]
[1741687209865,11.05112332,123.77,123.71,32.64]
[1741687210165,2.02001903,123.76,123.71,32.64]
[1741687210365,0.05906098,123.75,123.73,0.05847926]
[1741687210570,6.82897343,123.74,123.69,32.64]
[1741687210774,2.02039663,123.73,123.69,32.64]
[1741687211074,8.0845,123.71,123.69,32.64]
[1741687211274,13.55195008,123.73,123.69,32.64]
[1741687211477,2.02064503,123.72,123.69,40.7249]
[1741687211677,2.02073668,123.71,123.68,32.64]
[1741687211882,2.02108621,123.7,123.69,0.05722076]
[1741687212074,6.83297948,123.7,123.64,32.64]
[1741687212270,6.83297948,123.69,123.64,32.64]
[1741687212474,10.10748621,123.68,123.64,40.7286]
[1741687212674,13.55195008,123.71,123.64,32.64]
[1741687212879,6.83111174,123.7,123.64,32.64]
[1741687213176,6.88625116,123.69,123.66,0.04023425]
[1741687213382,0.05513942,123.69,123.67,32.64]
[1741687214078,0.05513942,123.69,123.67,46.19195008]
[1741687214281,2.02066382,123.72,123.67,46.19195008]
[1741687214476,2.0725,123.75,123.67,50.21685008]
[1741687214674,6.83108966,123.74,123.67,50.21685008]
[1741687214876,6.83108966,123.73,123.67,50.21685008]
[1741687215076,13.55195008,123.73,123.65,13.55195008]
[1741687215282,6.8301381,123.72,123.66,32.64]
[1741687215583,8.0853,123.69,123.68,0.05971187]
[1741687215885,14.91455719,123.69,123.68,0.05971187]
[1741687216072,14.91471246,123.69,123.68,0.05971187]
[1741687216279,14.91443543,123.69,123.68,0.05971187]
[1741687218082,0.05083771,123.7,123.68,0.05971187]
[1741687218285,2.02117487,123.69,123.68,0.05971187]
[1741687218881,10.10647487,123.69,123.68,0.05971187]
[1741687220387,2.02123483,123.69,123.68,0.05971187]
[1741687221879,10.10653483,123.69,123.68,0.05971187]
[1741687224281,8.0873,123.66,123.65,32.64]
[1741687224487,13.55195008,123.69,123.6,2.1841]
[1741687224691,6.82556114,123.68,123.61,32.64]
[1741687224890,8.0876,123.66,123.61,32.64]
[1741687225184,8.0876,123.66,123.63,8.0892]
[1741687225592,0.05673959,123.66,123.63,8.1248618]
[1741687225888,8.088,123.65,123.63,8.1248618]
[1741687226683,0.05673959,123.66,123.63,0.0356618]
[1741687226890,8.0886,123.64,123.63,0.0356618]
[1741687227085,13.55195008,123.65,123.6,32.64]
[1741687227590,8.0889,123.64,123.6,40.7309]
[1741687227782,13.55195008,123.63,123.6,32.64]
[1741687228183,8.0903,123.62,123.6,32.64]
[1741687228388,8.0903,123.62,123.59,40.7315]
[1741687228681,8.1501243,123.63,123.6,8.0909]
[1741687228989,8.1501243,123.63,123.59,32.64]
[1741687229183,8.1501243,123.63,123.59,40.7315]
[1741687229379,0.0606243,123.63,123.59,32.64]
[1741687229781,8.1501243,123.63,123.6,8.0911]
[1741687230189,0.0606243,123.63,123.59,40.7315]
[1741687230390,8.0903,123.62,123.59,40.7315]
[1741687231180,0.0606243,123.63,123.59,40.7315]
[1741687231389,0.0606243,123.63,123.59,32.64]
[1741687232387,0.0606243,123.63,123.61,8.0905]
[1741687232591,0.0606243,123.63,123.59,32.64]
[1741687232993,8.1502243,123.63,123.59,32.64]
[1741687233588,0.0606243,123.63,123.59,32.64]
[1741687233890,0.0606243,123.63,123.56,2.1809]
[1741687234091,8.0909,123.61,123.57,32.64]
[1741687234589,0.05690109,123.6,123.57,32.64]
[1741687235982,0.05690109,123.6,123.56,32.64]
[1741687236188,0.05690109,123.6,123.53,266.74]
[1741687236493,8.0933,123.57,123.54,32.64]
[1741687236994,8.15542598,123.57,123.54,32.64]
[1741687238090,0.06212598,123.57,123.54,32.64]
[1741687238893,8.15562598,123.57,123.54,32.64]
[1741687239095,0.06212598,123.57,123.54,32.64]
[1741687239299,8.15532598,123.57,123.54,32.64]
[1741687239499,0.06212598,123.57,123.54,32.64]
[1741687240298,0.06212598,123.57,123.52,32.64]
[1741687241393,13.61407606,123.57,123.4,266.9]
[1741687241598,13.55195008,123.53,123.44,13.55195008]
[1741687241797,0.05583584,123.5,123.46,13.55195008]
[1741687242097,271.0793,123.58,123.48,13.55195008]
[1741687242098,13.55195008,123.57,123.48,13.55195008]
[1741687242493,2.1485,123.58,123.48,13.55195008]
[1741687242695,13.55195008,123.59,123.5,13.55195008]
[1741687242900,15.67105008,123.61,123.52,13.55195008]
[1741687243302,13.55195008,123.59,123.52,32.64]
[1741687243504,0.05266193,123.58,123.55,0.05420804]
[1741687243898,0.05266193,123.58,123.55,8.14860804]
[1741687244095,0.05266193,123.58,123.55,32.69420804]
[1741687245398,8.14556193,123.58,123.55,32.69420804]
[1741687245598,0.05266193,123.58,123.55,32.69420804]
[1741687246606,8.0937,123.57,123.55,32.69420804]
[1741687247513,13.55195008,123.57,123.49,32.64]
[1741687247806,2.0628,123.56,123.49,32.64]
[1741687248007,8.0945,123.55,123.52,8.0963]
[1741687248503,10.157,123.56,123.53,8.0956]
[1741687248709,34.769,123.57,123.53,8.0956]
[1741687248710,0.06177864,123.55,123.53,8.0956]
[1741687248910,0.06177864,123.55,123.52,32.64]
[1741687249209,8.0955,123.54,123.52,32.64]
[1741687249509,0.06177864,123.55,123.52,32.64]
[1741687251406,73.06166698,123.59,123.53,13.55195008]
[1741687252307,46.19195008,123.63,123.55,13.55195008]
[1741687252308,13.55195008,123.63,123.55,13.55195008]
[1741687252507,8.0904,123.62,123.58,8.0924]
[1741687253616,17.78495008,123.65,123.59,32.64]
[1741687253810,0.05922271,123.61,123.59,32.69530312]
[1741687254610,4.1593,123.68,123.59,46.2472532]
[1741687254810,57.25284173,123.69,123.61,13.55195008]
[1741687255013,57.25284173,123.69,123.62,34.7497]
[1741687255213,57.25284173,123.69,123.63,8.0888]
[1741687255617,57.25284173,123.69,123.62,32.64]
[1741687255814,13.60758923,123.67,123.65,0.05827839]
[1741687256413,8.0873,123.66,123.65,0.05827839]
[1741687258916,0.05563915,123.67,123.65,0.05827839]
[1741687259418,8.0873,123.66,123.65,0.05827839]
[1741687259919,0.05563915,123.67,123.65,0.05827839]
[1741687260216,8.14253915,123.67,123.65,0.05827839]
[1741687260419,0.05563915,123.67,123.65,0.05827839]
[1741687260616,13.60758923,123.67,123.65,0.05827839]
[1741687260817,8.0873,123.66,123.65,0.05827839]
[1741687261409,13.60758923,123.67,123.58,1.9758]
[1741687261615,13.55195008,123.64,123.58,32.62]
[1741687261814,13.55195008,123.64,123.58,40.7122]
[1741687262017,8.0904,123.62,123.58,40.7122]
[1741687262523,0.05403346,123.61,123.59,0.05633979]
[1741687263022,8.0912,123.6,123.59,0.05633979]
[1741687263222,21.64315008,123.6,123.59,0.05633979]
[1741687263430,13.55195008,123.6,123.52,4.0408]
[1741687263723,13.55195008,123.58,123.49,33.3785]
[1741687264119,8.095,123.55,123.5,8.0976]
[1741687264316,21.74820362,123.56,123.5,8.0976]
[1741687264727,0.05131078,123.54,123.52,0.05483953]
[1741687264915,0.05131078,123.54,123.52,32.67483953]
[1741687266127,0.05131078,123.54,123.52,40.77123953]
[1741687266318,0.05131078,123.54,123.52,32.67483953]
[1741687266725,0.05131078,123.54,123.52,0.05483953]
[1741687267728,0.05131078,123.54,123.53,40.7158]
[1741687268318,0.05131078,123.54,123.53,32.62]
[1741687269227,0.05131078,123.54,123.53,40.7158]
[1741687269630,0.05131078,123.54,123.53,32.62]
[1741687270328,0.05131078,123.54,123.52,0.05483953]
[1741687271831,21.7995144,123.54,123.47,8.0994]
[1741687272027,1.991,123.53,123.48,32.62]
[1741687272628,1.991,123.53,123.47,32.62]
[1741687273126,0.05277035,123.51,123.47,32.62]
[1741687273629,0.05277035,123.51,123.49,8.098]
[1741687273825,0.05277035,123.51,123.47,32.62]
[1741687274228,0.05277035,123.51,123.5,8.0978]
[1741687274432,0.05277035,123.51,123.5,40.7378]
[1741687274822,0.05277035,123.51,123.35,223.70141872]
[1741687275127,2.1321,123.55,123.35,223.70141872]
[1741687275128,21.74820362,123.47,123.35,223.70141872]
[1741687275433,8.1029,123.43,123.35,257.27341872]
[1741687275622,0.06211593,123.42,123.36,30.39201076]
[1741687276428,0.06211593,123.42,123.37,2.1104]
[1741687276831,0.06211593,123.42,123.38,32.64]
[1741687278733,8.105,123.39,123.38,32.64]
[1741687278931,8.105,123.39,123.36,30.39201076]
[1741687279130,8.1059,123.38,123.36,30.39201076]
[1741687279431,0.06010032,123.39,123.34,269.2104]
[1741687279831,21.74820362,123.41,123.34,301.8504]
[1741687280022,0.06169341,123.38,123.34,301.8504]
[1741687280728,0.06169341,123.38,123.34,323.59860362]
[1741687281035,39.0255,123.46,123.34,323.59860362]
[1741687281232,39.0255,123.46,123.36,21.74820362]
[1741687281431,6.3655,123.46,123.37,32.66]
[1741687281825,23.92100362,123.49,123.38,21.74820362]
[1741687282030,0.05513335,123.43,123.4,8.163405]
[1741687282236,0.05513335,123.43,123.41,32.66]
[1741687282537,8.0999,123.47,123.41,32.66]
[1741687282830,8.1005,123.46,123.41,32.66]
[1741687283634,0.05324996,123.45,123.42,0.05571268]
[1741687285531,21.80145358,123.45,123.42,0.05571268]
[1741687285732,0.05324996,123.45,123.42,0.05571268]
[1741687286741,21.74820362,123.43,123.33,21.74820362]
[1741687286928,21.74820362,123.43,123.35,38.27663083]
[1741687287132,8.1047,123.4,123.36,32.78]
[1741687287832,21.74820362,123.43,123.36,32.78]
[1741687288139,0.0520219,123.39,123.37,0.0545387]
[1741687288638,8.1574219,123.39,123.37,0.0545387]
[1741687288940,0.0520219,123.39,123.37,32.9945387]
[1741687290142,0.0520219,123.39,123.37,41.1005387]
[1741687290341,0.0520219,123.39,123.37,32.9945387]
[1741687291844,0.0520219,123.39,123.37,0.0545387]
[1741687292341,0.0520219,123.39,123.38,33.44]
[1741687292747,2.0758,123.44,123.38,33.44]
[1741687292947,2.1244,123.47,123.38,33.44]
[1741687293246,21.74820362,123.48,123.38,33.44]
[1741687293447,8.0999,123.47,123.43,8.102]
[1741687293647,21.74820362,123.48,123.44,33.5]
[1741687293849,23.87260362,123.5,123.44,33.5]
[1741687294141,0.05379226,123.47,123.45,0.06114676]
[1741687295346,0.05379226,123.47,123.45,8.16204676]
[1741687295739,0.05379226,123.47,123.45,0.06114676]
[1741687296144,0.05379226,123.47,123.46,8.1004]
[1741687296846,2.0726,123.51,123.48,8.099]
[1741687297343,21.74820362,123.52,123.47,33.44]
[1741687297535,81.48038721,123.53,123.49,8.0982]
[1741687297741,25.87520362,123.54,123.49,8.0982]
[1741687297946,8.15860691,123.52,123.5,0.05197953]
[1741687298444,0.06210691,123.52,123.5,0.05197953]
[1741687299850,8.0971,123.51,123.5,33.35197953]
[1741687302756,0.06210691,123.52,123.5,41.44917953]
[1741687302957,0.06210691,123.52,123.5,33.35197953]
[1741687303255,8.0971,123.51,123.5,33.35197953]
[1741687303457,0.06210691,123.52,123.5,33.35197953]
[1741687303854,0.06210691,123.52,123.5,41.44937953]
[1741687304055,0.06210691,123.52,123.5,33.35197953]
[1741687305057,8.15900691,123.52,123.5,33.35197953]
[1741687305557,0.06210691,123.52,123.5,33.35197953]
[1741687305754,8.15890691,123.52,123.5,33.35197953]
[1741687305959,0.06210691,123.52,123.5,33.35197953]
[1741687306158,8.15890691,123.52,123.5,33.35197953]
[1741687306357,0.06210691,123.52,123.5,33.35197953]
[1741687306959,8.0971,123.51,123.5,33.35197953]
[1741687307557,21.81031053,123.52,123.43,2.0457]
[1741687307749,8.0992,123.48,123.44,33.18]
[1741687307955,8.0992,123.48,123.44,41.2813]
[1741687308154,8.0992,123.48,123.44,33.18]
[1741687308761,0.05369357,123.47,123.45,33.24174215]
[1741687309864,0.05369357,123.47,123.46,8.1004]
[1741687310053,0.05369357,123.47,123.45,33.24174215]
[1741687311463,8.15339357,123.47,123.45,33.24174215]
[1741687311662,0.05369357,123.47,123.45,41.34274215]
[1741687311862,0.05369357,123.47,123.45,33.24174215]
[1741687312062,0.05369357,123.47,123.45,41.34224215]
[1741687312462,0.05369357,123.47,123.45,33.24174215]
[1741687313154,0.05369357,123.47,123.46,8.1004]
[1741687321167,0.05369357,123.47,123.45,33.24174215]
[1741687321667,0.05369357,123.47,123.45,32.98174215]
[1741687322170,8.15379357,123.47,123.45,32.98174215]
[1741687322370,0.05369357,123.47,123.45,32.98174215]
[1741687323269,0.05369357,123.47,123.45,0.06174215]
[1741687323570,0.05369357,123.47,123.46,8.1004]
[1741687324269,0.05369357,123.47,123.45,32.92174215]
[1741687324967,0.05369357,123.47,123.46,8.1004]
[1741687328875,0.05369357,123.47,123.46,32.76]
[1741687329476,0.05369357,123.47,123.45,40.90244215]
[1741687330278,0.05369357,123.47,123.45,32.80174215]
[1741687330474,8.15359357,123.47,123.45,0.06174215]
[1741687332883,0.05369357,123.47,123.45,0.06174215]
[1741687333984,0.05369357,123.47,123.46,8.1004]
[1741687334291,0.05369357,123.47,123.46,40.7604]
[1741687335282,0.05369357,123.47,123.46,32.66]
[1741687336189,0.05369357,123.47,123.46,40.7604]
[1741687336889,0.05369357,123.47,123.46,32.66]
[1741687337484,2.07827681,123.47,123.46,32.66]
[1741687337793,10.17797681,123.47,123.46,32.66]
[1741687338489,14.98238887,123.47,123.46,32.66]
[1741687339894,8.1004,123.46,123.45,0.06174215]
[1741687340192,10.12498324,123.46,123.45,0.06174215]
[1741687340388,14.92897362,123.46,123.45,0.06174215]
[1741687340590,28.53092392,123.46,123.45,0.06174215]
[1741687340793,28.52904794,123.46,123.45,0.06174215]
[1741687341087,28.52929639,123.46,123.45,0.06174215]
[1741687341686,15.62677572,123.46,123.45,0.06174215]
[1741687342287,23.72717572,123.46,123.45,0.06174215]
[1741687342488,15.62677572,123.46,123.45,0.06174215]
[1741687342687,0.05369357,123.47,123.45,0.06174215]
[1741687342889,0.05369357,123.47,123.46,32.66]
[1741687343989,8.15339357,123.47,123.46,32.66]
[1741687344187,14.97928527,123.47,123.46,32.66]
[1741687344490,8.1004,123.46,123.45,0.06174215]
[1741687344690,6.8258917,123.46,123.45,0.06174215]
[1741687344891,2.02466428,123.46,123.45,0.06174215]
[1741687345593,20.42537018,123.46,123.42,40.7627]
[1741687345791,6.82341988,123.45,123.42,32.66]
[1741687345999,13.6019503,123.46,123.42,32.66]
[1741687346197,6.82488817,123.45,123.43,8.1023]
[1741687346397,13.6019503,123.46,123.43,8.1023]
[1741687346599,2.02499842,123.45,123.43,8.1023]
[1741687346791,21.7025503,123.46,123.43,8.15718752]
[1741687346991,6.82381253,123.45,123.43,8.15718752]
[1741687347195,13.6019503,123.46,123.43,8.15718752]
[1741687347397,2.02503842,123.45,123.43,8.15718752]
[1741687347598,21.7026503,123.46,123.43,8.15718752]
[1741687347892,6.82294793,123.45,123.43,8.15718752]
[1741687348098,21.7026503,123.46,123.43,0.05488752]
[1741687348298,14.9246486,123.45,123.43,0.05488752]
[1741687348600,8.1012,123.45,123.43,0.05488752]
[1741687348898,21.7025503,123.46,123.43,8.15708752]
[1741687349391,21.7025503,123.46,123.43,0.05488752]
[1741687350092,2.02494933,123.45,123.43,0.05488752]
[1741687350298,8.1012,123.45,123.43,0.05488752]
[1741687351501,13.6019503,123.46,123.43,0.05488752]
[1741687351697,8.1017,123.44,123.43,0.05488752]
[1741687353903,8.1013,123.45,123.43,0.05488752]
[1741687355004,10.12680603,123.44,123.43,0.05488752]
[1741687355404,8.1017,123.44,123.43,0.05488752]
[1741687355705,21.7028503,123.46,123.43,8.15708752]
[1741687355901,2.02488948,123.45,123.43,0.05488752]
[1741687356102,4.22549357,123.47,123.43,0.05488752]
[1741687356304,14.92327663,123.46,123.43,8.15688752]
[1741687356504,8.1004,123.46,123.43,8.15688752]
[1741687356708,2.16549357,123.47,123.43,0.05488752]
[1741687357004,2.0248839,123.46,123.43,0.05488752]